[Event "German Bundesliga 2023-24"]
[Site "Germany"]
[Date "2024.02.25"]
[Round "11.48"]
[White "Wegerle, Joerg"]
[Black "Tica, Sven"]
[Result "0-1"]
[ECO "A40"]
[WhiteElo "2405"]
[BlackElo "2444"]
[Annotator "TA"]
[PlyCount "64"]
[EventDate "2023.10.20"]
[EventType "team-tourn"]
[EventCountry "GER"]
[SourceTitle "playchess.com"]
[Source "ChessBase"]
[SourceQuality "1"]
[TimeControl "40/6000+30:3000+30"]

{[%evp 9,64,29,58,12,26,25,37,20,35,17,24,0,5,13,40,46,39,15,55,51,111,103,127,83,79,56,68,53,78,76,82,70,58,72,176,125,117,106,235,247,320,142,132,166,322,119,238,25,17,24,31,-19,0,-225,-205,-209,-194]} 1. Nf3 {[%emt 0:00:04]} g6 {[%emt 0:02:06]} 2. d4 {[%emt 0:01:22]} Bg7 {[%emt 0:00:40]} 3. Nc3 {[%emt 0:00:38]} d6 {[%emt 0:02:51]} 4. g3 {[%emt 0:03:24]} Bd7 {[%emt 0:10:39]} 5. Bg2 {[%emt 0:01:54]} Qc8 {[%emt 0:00:18]} 6. h4 {[%emt 0:14:10]} (6. e4 $14 {should be considered.}) 6... h6 {[%emt 0:09:40]} 7. e4 {[%emt 0:05:17][%cal Be2e4,Be4e5][%mdl 32]} Nf6 {[%emt 0:13:08]} 8. Qe2 {[%emt 0:11:32] White is slightly better.} Ng4 {[%emt 0:07:37]} 9. e5 {[%emt 0:11:46]} Nc6 {[%emt 0:08:11][%cal Rd6e5]} 10. O-O {[%emt 0:30:48]} O-O {[%emt 0:21:48]} 11. Nd5 {[%emt 0:08:45]} Bf5 {[%emt 0:09:32][%cal Rd6e5]} 12. c3 {[%emt 0:01:35]} Qd7 {[%emt 0:01:34]} 13. Bf4 {[%emt 0:01:55]} Rac8 {[%emt 0:03:07]} 14. Rfe1 {[%emt 0:02:27]} Qd8 {[%emt 0:08:01]} (14... Kh7 $14) 15. Rad1 $16 {[%emt 0:02:04]} Kh7 {[%emt 0:01:11]} 16. Qb5 {[%emt 0:05:39]} Rb8 {[%emt 0:02:27]} 17. Ne3 {[%emt 0:01:15] [#] Threatens to win with Nxf5.} Nxe3 {[%emt 0:00:22]} 18. Bxe3 {[%emt 0:00:37]} Bg4 {[%emt 0:00:32]} 19. Rd2 {[%emt 0:00:35][%cal Oe5e6]} Qc8 {[%emt 0:00:57]} 20. Nh2 {[%emt 0:00:46]} Bd7 {[%emt 0:00:42][%cal Oc6d4]} 21. Qe2 {[%emt 0:00:37]} b5 {[%emt 0:02:54]} (21... dxe5 $16 22. dxe5 Be6) 22. f4 {[%emt 0:00:35]} (22. e6 $18 fxe6 23. Be4) 22... Na5 {[%emt 0:00:24]} 23. b3 {[%emt 0:00:33] Against Nc4} f6 {[%emt 0:00:45]} (23... h5 $16 24. Bf2 c6) 24. h5 $18 {[%emt 0:03:00]} g5 {[%emt 0:00:42]} 25. Qd3+ {[%emt 0:01:02]} (25. e6 $18 {has better winning chances.} Bxe6 26. fxg5 fxg5 27. Bxg5 hxg5 28. Qxe6) 25... Bf5 $16 {[%emt 0:00:37]} 26. Be4 {[%emt 0:00:05]} fxe5 $2 {[%emt 0:00:53]} (26... Bxe4 {might work better.} 27. Qxe4+ Kg8) 27. dxe5 $2 {[%emt 0:01:02]} (27. g4 $18 {and White stays clearly on top.} Bxe4 28. Qxe4+ Kg8 29. fxg5 (29. fxe5 dxe5 30. dxe5 Qb7 $14) 29... hxg5 30. Nf3 (30. Bxg5 Qe8 $18) 30... Rxf3 31. Qxf3) 27... gxf4 {[%emt 0:00:30]} (27... Bxe4 $16 {was worth a try.} 28. Qxe4+ Qf5 29. Qxf5+ (29. Bxa7 Rb7 $16) 29... Rxf5) 28. Bxf5+ $2 {[%emt 0:00:30]} (28. gxf4 Bxe4 29. Qxe4+ Qf5 30. Bxa7 Rbe8 $15) (28. Bxf4 Nb7 29. exd6 (29. Qxb5 $2 Bxe4 30. Rxe4 Nc5 $19) 29... exd6) (28. Bxa7 $18 Ra8 29. e6 Rxa7 (29... Qxe6 $2 30. g4 $18) 30. Bxf5+ Kh8 31. gxf4) 28... Qxf5 $11 {[%emt 0:00:10]} 29. Bxf4 {[%emt 0:00:12][%cal Re5d6]} ({Much weaker is} 29. gxf4 dxe5 30. Qxf5+ (30. Bxa7 Qxd3 31. Rxd3 Ra8 $17) 30... Rxf5 $17) 29... Nc6 {[%emt 0:00:35]} 30. exd6 {[%emt 0:00:37]} (30. Nf3 $14) 30... cxd6 {[%emt 0:01:23]} 31. Re3 $2 {[%emt 0:00:42] [#]} (31. Re4 $11 {and White has nothing to worry.}) 31... e5 $1 $19 {[%emt 0:00:24] And now ...Qxd3 would win.} 32. Qxf5+ {[%emt 0:00:18]} Rxf5 {[%emt 0:00:01] Weighted Error Value: White=0.50/Black=0.34.  Loses game:     	White=1     	---        Missed win:     	White=3     	---        Mistake:       	White=2     	Black=5      Inaccurate:     	White=1     	Black=2      OK:         	White=9     	Black=6      Strong:       	---       	Black=1} 0-1

[Event "German Bundesliga 2023-24"]
[Site "Germany"]
[Date "2024.02.25"]
[Round "11.49"]
[White "Pfreundt, Jakob"]
[Black "Nihal Sarin"]
[Result "0-1"]
[ECO "A30"]
[WhiteElo "2455"]
[BlackElo "2693"]
[Annotator "TA"]
[PlyCount "140"]
[EventDate "2023.10.20"]
[EventType "team-tourn"]
[EventCountry "GER"]
[SourceTitle "playchess.com"]
[Source "ChessBase"]
[SourceQuality "1"]
[TimeControl "40/6000+30:3000+30"]

{[%evp 62,140,-26,-81,-82,-81,-90,-86,-82,-77,-81,-80,-92,-88,-49,-49,-49,-49,-49,-51,-59,-59,-59,-61,-12,-70,-92,-90,-54,-69,-59,-59,-37,-23,-27,-35,-35,-26,-38,-46,-48,-8,-8,-8,-8,-17,-15,-8,-8,-31,-8,-8,-8,-8,-8,-8,-8,-128,-196,-8078,-5611,-7938,-6134,-8078,-7210,-29955,-29958,-29955,-29958,-29949,-29943,-29968,-29966,-8078,-6275,-5116,-5116,-29981,-29982,-29984,-29985]} 1. Nf3 {[%emt 0:00:05]} Nf6 {[%emt 0:03:07]} 2. c4 {[%emt 0:03:51]} b6 {[%emt 0:01:54]} 3. g3 {[%emt 0:01:05]} Bb7 {[%emt 0:00:36]} 4. Bg2 {[%emt 0:00:14]} g6 {[%emt 0:00:15]} 5. b3 {[%emt 0:02:43]} Bg7 {[%emt 0:01:05]} 6. Bb2 {[%emt 0:00:10]} O-O {[%emt 0:00:16]} 7. O-O {[%emt 0:00:20]} e6 {[%emt 0:00:14]} 8. Nc3 {[%emt 0:04:35]} d5 {[%emt 0:03:20]} 9. cxd5 {[%emt 0:01:22]} Nxd5 $5 {[%emt 0:00:52][%mdl 4] Leaves trodden paths.} 10. Qc1 {[%emt 0:05:35]} c5 {[%emt 0:05:17]} 11. Nxd5 {[%emt 0:01:52] A30: Symmetrical English: Double Fianchetto and Hedgehog.} Bxd5 {[%emt 0:00:07]} 12. Rd1 $146 {[%emt 0:06:13]} ({Predecessor:} 12. Bxg7 Kxg7 13. d4 cxd4 14. Rd1 Nc6 15. Nxd4 Nxd4 16. Rxd4 Qf6 17. Rh4 g5 18. Rg4 Bxg2 19. Kxg2 {½-½ Andersson,U (2605)-Timman,J (2655) Mar del Plata Clarin Masters 1982}) 12... Nd7 {[%emt 0:14:02]} 13. Bxg7 {[%emt 0:10:37]} Kxg7 {[%emt 0:00:14]} 14. Qc3+ {[%emt 0:11:39]} Qf6 {[%emt 0:00:47]} 15. Rac1 {[%emt 0:01:20]} Rac8 {[%emt 0:03:22]} 16. Ng5 {[%emt 0:26:48]} Bxg2 {[%emt 0:12:36]} 17. Qxf6+ {[%emt 0:00:16]} Nxf6 {[%emt 0:00:06]} 18. Kxg2 {[%emt 0:00:05]} e5 {[%emt 0:03:12]} 19. d3 {[%emt 0:00:27]} Rfd8 {[%emt 0:01:13]} 20. Rc4 {[%emt 0:14:07]} Ne8 {[%emt 0:10:30]} 21. Rdc1 {[%emt 0:01:10]} Nd6 {[%emt 0:05:18]} 22. Ra4 {[%emt 0:03:55]} a5 {[%emt 0:00:53]} 23. Ne4 {[%emt 0:01:10]} Nb5 {[%emt 0:00:37]} 24. Kf1 {[%emt 0:02:36]} f5 {[%emt 0:01:56]} 25. Ng5 {[%emt 0:00:43]} Rd7 {[%emt 0:01:06]} 26. g4 {[%emt 0:07:28]} Nd4 {[%emt 0:12:53]} 27. e3 {[%emt 0:00:34]} Nc6 {[%emt 0:00:20]} 28. gxf5 {[%emt 0:00:03]} gxf5 {[%emt 0:00:06]} 29. Rh4 {[%emt 0:02:12]} h6 {[%emt 0:02:07]} 30. Nf3 {[%emt 0:00:19]} Rxd3 {[%emt 0:00:43]} 31. Ke2 {[%emt 0:00:14]} Rd6 {[%emt 0:00:05]} 32. Rg1+ {[%emt 0:00:12]} (32. Nd2 $1 $11) 32... Kf7 $17 {[%emt 0:09:12]} 33. Rh5 {[%emt 0:00:18]} Rf6 {[%emt 0:00:12]} 34. Nh4 {[%emt 0:00:50]} Ne7 {[%emt 0:00:30]} 35. Nf3 {[%emt 0:01:58]} e4 {[%emt 0:01:17]} 36. Ne5+ {[%emt 0:00:08]} Ke6 {[%emt 0:00:07]} 37. Rg7 {[%emt 0:00:51]} Rc7 {[%emt 0:03:27]} 38. f4 $1 {[%emt 0:00:40]} exf3+ {[%emt 0:00:49]} 39. Nxf3 {[%emt 0:00:02]} Nd5 {[%emt 0:00:25]} 40. Rxc7 $1 {[%emt 0:01:01]} Nxc7 {[%emt 0:00:05]} 41. a4 {[%emt 0:02:03]} Ne8 {[%emt 0:04:15]} 42. Nd2 {[%emt 0:03:28]} Rg6 {[%emt 0:18:13]} (42... Nd6 $15) 43. Kd3 {[%emt 0:09:39]} ({White should play} 43. Nc4 $11) 43... Nf6 $15 {[%emt 0:06:51]} 44. Rh4 {[%emt 0:00:56]} Ng4 {[%emt 0:01:28]} 45. Nc4 {[%emt 0:02:21]} Kf6 {[%emt 0:00:58]} 46. Rh5 $1 {[%emt 0:01:36]} (46. Nxb6 $2 Kg5 47. Rxg4+ fxg4 $19) 46... Rg8 {[%emt 0:25:58]} 47. Ke2 {[%emt 0:03:24]} Kg6 {[%emt 0:03:59]} 48. Rh3 {[%emt 0:00:11]} Rb8 {[%emt 0:00:39]} 49. Rg3 {[%emt 0:02:37]} Kf6 {[%emt 0:00:35]} 50. h3 {[%emt 0:04:50]} Ne5 {[%emt 0:00:03]} 51. Nxe5 {[%emt 0:00:25]} Kxe5 {[%emt 0:00:02]} 52. Rg6 {[%emt 0:00:40]} b5 {[%emt 0:00:03]} 53. Rxh6 {[%emt 0:15:38]} bxa4 {[%emt 0:00:11]} 54. bxa4 {[%emt 0:00:04]} Rb4 {[%emt 0:00:54]} 55. Rc6 {[%emt 0:01:24]} c4 {[%emt 0:04:11]} (55... Rxa4 56. Rxc5+ Ke6 57. Kf3 $11) 56. Rc5+ {[%emt 0:07:45]} Ke4 {[%emt 0:00:06]} 57. Rxa5 {[%emt 0:00:11]} Rb2+ {[%emt 0:00:04]} 58. Kd1 {[%emt 0:00:05]} Rf2 {[%emt 0:00:11]} (58... Kxe3 59. Rxf5 Kd4 60. Rf4+ Kc3 61. a5) 59. Rc5 {[%emt 0:01:15]} (59. Ra8 $11 {keeps the balance.}) 59... Kd3 $17 {[%emt 0:00:28]} (59... Kxe3 60. Rxc4 Rf1+ 61. Kc2) 60. Kc1 $2 {[%emt 0:00:25]} (60. Rd5+ Kxe3 61. Rd8) 60... c3 $1 $19 {[%emt 0:00:55]} ({Weaker is} 60... Kxe3 61. Rxc4 f4 62. Rc3+ Ke2 63. a5 $11) 61. Rd5+ {[%emt 0:00:21]} Kxe3 {[%emt 0:00:08]} 62. a5 {[%emt 0:00:45]} f4 {[%emt 0:00:10]} 63. a6 {[%emt 0:01:12]} Ra2 {[%emt 0:00:46]} 64. Re5+ {[%emt 0:00:43]} Kd3 {[%emt 0:00:50]} 65. Rd5+ {[%emt 0:00:16]} Kc4 {[%emt 0:01:50]} 66. Rd6 {[%emt 0:00:36]} f3 {[%emt 0:00:21]} 67. Rc6+ {[%emt 0:00:37]} Kd5 {[%emt 0:03:20]} 68. Rf6 {[%emt 0:00:16]} f2 {[%emt 0:00:15]} 69. a7 {[%emt 0:00:14]} Rxa7 {[%emt 0:00:48]} 70. Kc2 {[%emt 0:00:19]} Ra1 {[%emt 0:00:08]} 0-1

[Event "German Bundesliga 2023-24"]
[Site "Germany"]
[Date "2024.02.25"]
[Round "11.50"]
[White "Svane, Rasmus"]
[Black "Abel, Dennes"]
[Result "1-0"]
[ECO "B13"]
[WhiteElo "2646"]
[BlackElo "2404"]
[Annotator "ChessBase"]
[PlyCount "75"]
[EventDate "2023.10.20"]
[EventType "team-tourn"]
[EventCountry "GER"]
[SourceTitle "playchess.com"]
[Source "ChessBase"]
[SourceQuality "1"]
[TimeControl "40/6000+30:3000+30"]

1. e4 {[%emt 0:00:04]} c6 {[%emt 0:00:26]} 2. d4 {[%emt 0:00:14]} d5 {[%emt 0:00:11]} 3. exd5 {[%emt 0:00:14]} cxd5 {[%emt 0:00:10]} 4. Bd3 {[%emt 0:00:04]} Nf6 {[%emt 0:01:07]} 5. h3 {[%emt 0:05:35]} Nc6 {[%emt 0:00:23]} 6. c3 {[%emt 0:02:21]} e5 {[%emt 0:00:10]} 7. dxe5 {[%emt 0:00:12]} Nxe5 {[%emt 0:00:05]} 8. Qe2 {[%emt 0:01:57]} Qe7 {[%emt 0:01:00]} 9. Be3 {[%emt 0:05:17]} Nxd3+ {[%emt 0:10:53]} 10. Qxd3 {[%emt 0:00:05]} Qe4 {[%emt 0:00:05]} 11. Qb5+ {[%emt 0:15:58]} Bd7 {[%emt 0:01:01]} 12. Qxb7 {[%emt 0:00:41]} Rd8 {[%emt 0:03:57]} 13. Nf3 {[%emt 0:01:26]} Bd6 {[%emt 0:03:59]} 14. Qa6 {[%emt 0:07:09]} Bb8 {[%emt 0:10:03]} 15. Nbd2 {[%emt 0:03:20]} Qg6 {[%emt 0:03:35]} 16. O-O-O {[%emt 0:28:30]} d4 {[%emt 0:11:41]} 17. Nh4 {[%emt 0:08:45]} Qh5 {[%emt 0:02:01]} 18. g4 {[%emt 0:01:58]} Qd5 {[%emt 0:00:23]} 19. Bxd4 {[%emt 0:00:56]} O-O {[%emt 0:11:05]} 20. Rhe1 {[%emt 0:07:25]} Bc8 {[%emt 0:11:11]} 21. Qa4 {[%emt 0:04:27]} Qg5 {[%emt 0:05:02]} 22. Nhf3 {[%emt 0:03:50]} Qf4 {[%emt 0:01:01]} 23. Qb5 {[%emt 0:02:02]} Rd5 {[%emt 0:03:41]} 24. Qc4 {[%emt 0:03:14]} Be6 {[%emt 0:01:55]} 25. Bxf6 {[%emt 0:00:32]} Qxf6 {[%emt 0:02:57]} 26. Nd4 {[%emt 0:00:22]} Qxf2 {[%emt 0:07:13]} 27. Rf1 {[%emt 0:03:09]} Qe3 {[%emt 0:00:20]} 28. Rde1 {[%emt 0:01:25]} Rxd4 {[%emt 0:00:28]} 29. Qxd4 {[%emt 0:00:22]} Qxh3 {[%emt 0:00:10]} 30. Rxe6 {[%emt 0:00:50]} fxe6 {[%emt 0:00:16]} 31. Rxf8+ {[%emt 0:00:09]} Kxf8 {[%emt 0:00:03]} 32. Qd8+ {[%emt 0:00:12]} Kf7 {[%emt 0:00:06]} 33. Qxb8 {[%emt 0:00:05]} Qxg4 {[%emt 0:00:14]} 34. Qxa7+ {[%emt 0:00:08]} Kg6 {[%emt 0:00:45]} 35. a4 {[%emt 0:03:08]} h5 {[%emt 0:00:04]} 36. a5 {[%emt 0:00:11]} h4 {[%emt 0:00:16]} 37. a6 {[%emt 0:00:52]} h3 {[%emt 0:02:47]} 38. Qf2 {[%emt 0:00:47]} 1-0

[Event "German Bundesliga 2023-24"]
[Site "Germany"]
[Date "2024.02.25"]
[Round "11.51"]
[White "Walter, Stefan"]
[Black "Mendonca, Leon Luke"]
[Result "0-1"]
[ECO "D02"]
[WhiteElo "2382"]
[BlackElo "2614"]
[Annotator "ChessBase"]
[PlyCount "58"]
[EventDate "2023.10.20"]
[EventType "team-tourn"]
[EventCountry "GER"]
[SourceTitle "playchess.com"]
[Source "ChessBase"]
[SourceQuality "1"]
[TimeControl "40/6000+30:3000+30"]

1. d4 {[%emt 0:00:03]} d5 {[%emt 0:00:16]} 2. Nf3 {[%emt 0:00:49]} Nf6 {[%emt 0:02:43]} 3. c3 {[%emt 0:01:09]} e6 {[%emt 0:03:08]} 4. Bf4 {[%emt 0:00:58]} c5 {[%emt 0:01:40]} 5. e3 {[%emt 0:02:03]} Be7 {[%emt 0:01:28]} 6. h3 {[%emt 0:01:39]} Qb6 {[%emt 0:02:52]} 7. Qb3 {[%emt 0:02:10]} O-O {[%emt 0:00:11]} 8. Nbd2 {[%emt 0:00:52]} Bd7 {[%emt 0:01:02]} 9. Ne5 {[%emt 0:07:21]} Bc6 {[%emt 0:05:15]} 10. Be2 {[%emt 0:04:59]} Nbd7 {[%emt 0:00:06]} 11. Qxb6 {[%emt 0:03:47]} axb6 {[%emt 0:03:02]} 12. Nxc6 {[%emt 0:03:10]} bxc6 {[%emt 0:00:07]} 13. O-O {[%emt 0:00:17]} b5 {[%emt 0:03:06]} 14. a3 {[%emt 0:07:14]} Ra7 {[%emt 0:04:16]} 15. Rac1 {[%emt 0:01:14]} Nb6 {[%emt 0:06:41]} 16. Rc2 {[%emt 0:03:13]} c4 {[%emt 0:07:52]} 17. f3 {[%emt 0:03:49]} c5 {[%emt 0:04:25]} 18. g4 {[%emt 0:03:43]} Nfd7 {[%emt 0:13:38]} 19. Kg2 {[%emt 0:09:34]} Na4 {[%emt 0:03:28]} 20. Rb1 {[%emt 0:06:38]} Rfa8 {[%emt 0:09:55]} 21. Nf1 {[%emt 0:09:19]} Rb7 {[%emt 0:03:12]} 22. Rd1 {[%emt 0:01:07]} b4 {[%emt 0:05:50]} 23. axb4 {[%emt 0:06:43]} cxb4 {[%emt 0:01:26]} 24. Ra1 {[%emt 0:00:53]} b3 {[%emt 0:00:36]} 25. Rd2 {[%emt 0:03:54]} Rba7 {[%emt 0:00:18]} 26. Rb1 {[%emt 0:00:06]} Ndb6 {[%emt 0:11:02]} 27. e4 {[%emt 0:08:02]} Nxc3 {[%emt 0:04:01]} 28. bxc3 {[%emt 0:00:13]} Na4 {[%emt 0:00:14]} 29. Rc1 {[%emt 0:10:51]} Ba3 {[%emt 0:00:56]} 0-1

[Event "German Bundesliga 2023-24"]
[Site "Germany"]
[Date "2024.02.25"]
[Round "11.52"]
[White "Kempinski, Robert"]
[Black "Lammers, Markus"]
[Result "1-0"]
[ECO "A61"]
[WhiteElo "2554"]
[BlackElo "2336"]
[Annotator "TA"]
[PlyCount "95"]
[EventDate "2023.10.20"]
[EventType "team-tourn"]
[EventCountry "GER"]
[SourceTitle "playchess.com"]
[Source "ChessBase"]
[SourceQuality "1"]
[TimeControl "40/6000+30:3000+30"]

{[%evp 18,95,27,38,48,42,47,41,64,38,69,70,64,46,79,66,75,98,93,86,87,84,118,120,110,114,144,125,110,110,115,103,102,108,101,103,108,97,83,103,108,114,98,70,83,55,52,47,35,37,85,49,47,34,42,32,45,37,89,69,87,33,124,131,281,47,600,589,878,701,29980,29980,29977,29978,29992,216,29993,29993,29998,29999]} 1. d4 {[%emt 0:49:03]} Nf6 {[%emt 1:21:16]} 2. Nf3 {[%emt 0:00:30]} e6 {[%emt 0:00:30]} 3. c4 {[%emt 0:00:30]} c5 {[%emt 0:00:30]} 4. d5 {[%emt 0:00:30]} exd5 {[%emt 0:00:30]} 5. cxd5 {[%emt 0:00:30]} d6 {[%emt 0:00:30]} 6. Nc3 {[%emt 0:00:30]} g6 {[%emt 0:00:30]} 7. Bf4 {[%emt 0:00:30]} a6 {[%emt 0:00:30]} 8. a4 {[%emt 0:00:30]} Bg7 {[%emt 0:00:30]} 9. h3 {[%emt 0:00:30]} O-O {[%emt 0:00:30]} 10. e3 {[%emt 0:00:30]} Qe7 {[%emt 0:00:30]} 11. Be2 {[%emt 0:00:30]} Nbd7 {[%emt 0:00:30]} 12. O-O {[%emt 0:00:30]} Rb8 {[%emt 0:00:30] White is slightly better.} 13. Re1 {[%emt 0:00:30]} Nh5 {[%emt 0:00:30]} 14. Bh2 {[%emt 0:00:30]} f5 {[%emt 0:00:30]} 15. Nd2 {[%emt 0:00:30]} Nhf6 {[%emt 0:00:30]} 16. Nc4 {[%emt 0:00:30]} Ne8 {[%emt 0:00:30]} 17. a5 {[%emt 0:00:30]} Ne5 {[%emt 0:00:30]} 18. Nb6 {[%emt 0:00:30]} g5 {[%emt 0:00:30]} 19. f4 {[%emt 0:00:30]} Ng6 {[%emt 0:00:30]} 20. Bd3 {[%emt 0:00:30]} gxf4 {[%emt 0:00:30]} 21. exf4 {[%emt 0:00:30]} Qh4 {[%emt 0:00:30]} 22. Rf1 {[%emt 0:00:30]} Nc7 {[%emt 0:00:30]} 23. Qc2 {[%emt 0:00:30]} Qd8 {[%emt 0:00:30]} 24. Rab1 {[%emt 0:00:30][%cal Ba1b1,Bb1b4,Bb4c4][%mdl 32]} Bd7 {[%emt 0:00:30]} 25. b4 {[%emt 0:00:30]} cxb4 {[%emt 0:00:30]} 26. Rxb4 {[%emt 0:00:30]} Bxc3 {[%emt 0:00:30]} 27. Qxc3 {[%emt 0:00:30][%cal Og2g4]} Bb5 {[%emt 0:00:30]} 28. Re1 {[%emt 0:00:30] White is much more active.} Bxd3 {[%emt 0:00:30]} 29. Qxd3 {[%emt 0:00:30]} Rf7 {[%emt 0:00:30]} 30. Kh1 {[%emt 0:00:30]} Qf8 {[%emt 0:00:30]} 31. Rc4 {[%emt 0:00:30]} Re8 {[%emt 0:00:30]} 32. Rxe8 {[%emt 0:00:30]} Qxe8 {[%emt 0:00:30]} 33. Bg3 {[%emt 0:00:30] Dodges Qe1+} Qe7 {[%emt 0:00:30]} (33... Qb5 $14) 34. Qc2 {[%emt 0:00:30]} Nb5 {[%emt 0:00:30]} 35. Kh2 {[%emt 0:00:30]} Qf6 {[%emt 0:00:30]} 36. Qd3 {[%emt 0:00:30]} Re7 {[%emt 0:00:30]} 37. Rc8+ {[%emt 0:00:30]} (37. Bf2 {simplifies} Re4 38. Rxe4 fxe4 39. Qxe4 Qxf4+ 40. Qxf4 Nxf4 41. Kg3) 37... Kg7 {[%emt 0:00:30]} (37... Kf7 $14) 38. Nc4 $1 $36 {[%emt 0:00:30][%mdl 2048] Black is under pressure.} Re4 {[%emt 0:00:30][%cal Of6d4]} 39. Nd2 {[%emt 0:00:30]} (39. Ne3 $1 $16) 39... Rd4 {[%emt 0:00:30]} ({Better is} 39... Qd4 $14 40. Qxd4+ Rxd4) 40. Qe3 {[%emt 0:00:30]} Rxd5 {[%emt 0:00:30] [#]} (40... Qf7 $16) 41. Nf3 $2 {[%emt 0:50:30]} ({White must play} 41. Rb8 $1 $18 {[%cal Rb8b7]} Rc5 42. Rxb7+ Rc7 43. Qb6) 41... Qe7 {[%mdl 8192] [#]} (41... Rc5 $14 42. Rb8 (42. Rxc5 dxc5 43. Qxc5 h6 $16) 42... Qe7) 42. Qb3 $1 $18 {[%emt 0:00:30]} Qd7 {[%emt 0:51:00]} 43. Rb8 {[%emt 0:05:40]} Rc5 {[%emt 0:00:51]} 44. Rg8+ {[%emt 0:05:57]} Kh6 {[%emt 0:01:36]} 45. Bh4 {[%emt 0:02:04]} Nc3 {[%emt 0:06:08]} 46. Bg5+ {[%emt 0:03:12]} Kh5 {[%emt 0:00:01]} 47. Nd4 {[%emt 0:00:57]} Rc8 {[%emt 0:06:03] [#]} 48. Ne2 $1 {[%emt 0:04:24][%mdl 512] Weighted Error Value: White=0.12 (very precise) /Black=0.44.  Loses game:     	---       	Black=1      Missed win:     	White=1     	---        Mistake:       	White=1     	Black=4      Inaccurate:     	White=3     	Black=5      OK:         	White=9     	Black=9      Best:        	---       	Black=2      Strong:       	White=2     	---} 1-0

[Event "German Bundesliga 2023-24"]
[Site "Germany"]
[Date "2024.02.25"]
[Round "11.53"]
[White "Schulze, Torben"]
[Black "Papp, Gabor"]
[Result "0-1"]
[ECO "B23"]
[WhiteElo "2325"]
[BlackElo "2530"]
[Annotator "TA"]
[PlyCount "94"]
[EventDate "2023.10.20"]
[EventType "team-tourn"]
[EventCountry "GER"]
[SourceTitle "playchess.com"]
[Source "ChessBase"]
[SourceQuality "1"]
[TimeControl "40/6000+30:3000+30"]

{[%evp 10,94,27,20,29,11,15,0,8,-4,0,-27,-16,-7,0,0,0,0,0,0,0,-4,11,-6,0,-18,0,-23,-13,-39,0,-75,-87,-127,-118,-111,-127,-120,-127,-135,-92,-106,-65,-83,-75,-163,-170,-171,-177,-200,-183,-203,-116,-199,-183,-206,-197,-225,-215,-342,-262,-300,-230,-232,-222,-222,-197,-203,-172,-283,-281,-295,-273,-302,-308,-316,-312,-378,-347,-363,-346,-383,-378,-485,-485,-657,-652]} 1. e4 {[%emt 0:00:09]} c5 {[%emt 0:00:12]} 2. Nc3 {[%emt 0:00:16]} a6 {[%emt 0:01:10]} 3. g3 {[%emt 0:02:29]} d6 {[%emt 0:01:20]} 4. Bg2 {[%emt 0:00:09]} Nf6 {[%emt 0:00:25]} 5. Nge2 {[%emt 0:01:28]} e5 {[%emt 0:00:53]} 6. O-O {[%emt 0:00:45] B23: Closed Sicilian: Lines without g3.} b5 {[%emt 0:01:04]} 7. d3 {[%emt 0:06:08]} Be7 {[%emt 0:00:58]} 8. a3 {[%emt 0:26:11]} O-O {[%emt 0:01:52]} 9. b4 $146 {[%emt 0:06:02]} ({Predecessor:} 9. h3 Nc6 10. Be3 Nd4 11. f4 Bb7 12. Nd5 Nxd5 13. exd5 Bf6 14. c3 Nf5 15. Bf2 exf4 16. Nxf4 {0-1 Alvarez Castillo,H (1970)-Svidersky,A (2045) BI-2011-P-00029}) 9... Bb7 {[%emt 0:09:04]} 10. Rb1 {[%emt 0:04:29]} Nbd7 {[%emt 0:14:46]} 11. Bd2 {[%emt 0:12:21]} Rb8 {[%emt 0:09:16]} 12. Nc1 {[%emt 0:04:01]} Qc7 {[%emt 0:05:35]} 13. Nb3 {[%emt 0:02:07]} Nb6 {[%emt 0:01:05]} 14. Na5 {[%emt 0:02:44]} Ba8 {[%emt 0:01:19]} 15. Qe2 {[%emt 0:04:15]} Rfe8 {[%emt 0:08:00]} 16. Rfc1 {[%emt 0:01:22]} h6 {[%emt 0:01:33]} 17. Qe1 {[%emt 0:06:59]} Bf8 {[%emt 0:03:27]} 18. h3 {[%emt 0:01:18]} Rbc8 {[%emt 0:02:27]} 19. Kh2 {[%emt 0:00:38]} Qd7 {[%emt 0:10:57]} 20. Qh1 {[%emt 0:01:55]} (20. bxc5 $11 {keeps the balance.} dxc5 21. a4) 20... d5 $17 {[%emt 0:06:51]} 21. Nxd5 {[%emt 0:02:38]} Nbxd5 {[%emt 0:01:03]} 22. exd5 {[%emt 0:00:04]} Bxd5 {[%emt 0:00:06]} 23. Bxd5 {[%emt 0:00:42]} Nxd5 {[%emt 0:00:04]} 24. Qe1 {[%emt 0:08:09]} Nc7 {[%emt 0:08:18]} 25. Nb3 {[%emt 0:03:51]} c4 {[%emt 0:01:53]} 26. dxc4 {[%emt 0:01:20]} bxc4 {[%emt 0:00:13]} 27. Na5 {[%emt 0:06:02]} (27. Nc5 $17 {was worth a try.} Bxc5 28. bxc5) 27... Nb5 $19 {[%emt 0:00:44]} 28. c3 {[%emt 0:00:54]} Nxa3 {[%emt 0:01:44]} 29. Ra1 {[%emt 0:00:01]} Nb5 {[%emt 0:00:05]} 30. Qe2 {[%emt 0:01:33]} Qc7 {[%emt 0:01:42]} (30... Qe6 $19 {White must now prevent ...Red8.} 31. Rd1 f5) 31. Be1 {[%emt 0:00:56]} (31. Be3 $17 {keeps fighting.}) 31... f5 {[%emt 0:03:35]} 32. Rd1 {[%emt 0:00:27]} Qf7 {[%emt 0:00:04]} 33. Qe3 {[%emt 0:02:11]} e4 {[%emt 0:01:05]} 34. Qb6 {[%emt 0:00:35]} (34. Qd2 $142) 34... e3 {[%emt 0:01:48]} 35. fxe3 {[%emt 0:01:15]} Re6 {[%emt 0:01:37]} 36. Qb7 {[%emt 0:00:24]} Qxb7 {[%emt 0:00:06]} 37. Nxb7 {[%emt 0:00:00]} Rxe3 {[%emt 0:00:08]} 38. Rdc1 {[%emt 0:02:09]} Rc6 {[%emt 0:02:35]} 39. Na5 {[%emt 0:00:25]} (39. Kg2 $142) 39... Rc7 $19 {[%emt 0:00:37]} 40. Ra2 {[%emt 0:00:36]} Bd6 {[%emt 0:03:19]} 41. Rac2 {[%emt 0:12:21]} Be5 {[%emt 0:05:38]} 42. Kg2 {[%emt 0:03:09]} Rd3 {[%emt 0:01:45]} 43. Kh2 {[%emt 0:11:22]} Kf7 {[%emt 0:02:53]} 44. Kg2 {[%emt 0:00:23]} h5 {[%emt 0:01:40]} 45. h4 {[%emt 0:01:15]} g6 {[%emt 0:00:05]} 46. Kh2 {[%emt 0:01:13]} Nd6 {[%emt 0:01:28]} 47. Rd2 {[%emt 0:02:36]} Bxg3+ {[%emt 0:00:55]} 0-1